fUST/lending_fUST_20250220
["ID","MTS","AMOUNT","RATE_DAILY","PERIOD"]
[353762217,1740016247619,-500.0,0.00014684,2]
[353762218,1740016247628,-500.0,0.00014684,2]
[353762219,1740016247638,-2317.6565224,0.00014699,2]
[353762220,1740016247649,-151.0,0.000147,2]
[353762221,1740016247659,-151.0,0.000147,2]
[353762222,1740016247669,-557.1188801,0.00014712,2]
[353762223,1740016247680,-557.1188801,0.00014712,2]
[353762224,1740016247690,-557.1188801,0.00014712,2]
[353762225,1740016247700,-557.1188801,0.00014712,2]
[353762226,1740016247710,-557.1188801,0.00014712,2]
[353762227,1740016247720,-557.1188801,0.00014712,2]
[353762228,1740016247731,-557.1188801,0.00014712,2]
[353762229,1740016247741,-557.1188801,0.00014712,2]
[353762230,1740016247751,-1209.524,0.0001475,2]
[353762231,1740016247760,-172.077,0.0001475,2]
[353762232,1740016247770,-500.0,0.00014767,2]
[353762233,1740016247781,-500.0,0.00014767,2]
[353762234,1740016247791,-584.05,0.00014767,2]
[353762235,1740016247801,-500.0,0.00014767,2]
[353762236,1740016247811,-832.57,0.00014767,2]
[353762237,1740016247822,-1332.97,0.00014767,2]
[353762238,1740016247832,-959.47,0.00014767,2]
[353762239,1740016247841,-519.81,0.00014767,2]
[353762240,1740016247852,-816.37,0.00014767,2]
[353762241,1740016247865,-500.0,0.00014767,2]
[353762242,1740016247875,-500.0,0.00014767,2]
[353762243,1740016247886,-500.0,0.00014767,2]
[353762244,1740016247896,-500.0,0.00014767,2]
[353762245,1740016247906,-3832.1,0.00014767,2]
[353762246,1740016247918,-500.0,0.00014767,2]
[353762247,1740016247931,-951.13,0.00014767,2]
[353762248,1740016247942,-1133.99,0.00014767,2]
[353762249,1740016247953,-1261.84,0.00014767,2]
[353762250,1740016247964,-500.0,0.00014767,2]
[353762251,1740016247975,-600.74,0.00014767,2]
[353762252,1740016247986,-3070.64,0.00014767,2]
[353762253,1740016247996,-661.07,0.00014767,2]
[353762254,1740016248007,-10140.71,0.00014767,2]
[353762255,1740016248017,-500.0,0.00014767,2]
[353762256,1740016248029,-500.0,0.00014767,2]
[353762257,1740016248039,-1000.0,0.00014795,2]
[353762258,1740016248049,-151.0,0.000148,2]
[353762259,1740016248060,-200.0,0.000148,4]
[353762260,1740016248070,-200.0,0.000148,4]
[353762261,1740016248080,-200.0,0.000148,3]
[353762262,1740016248091,-173.0,0.000148,3]
[353762263,1740016248101,-173.0,0.000148,3]
[353762264,1740016248114,-173.0,0.000148,4]
[353762265,1740016248125,-173.0,0.000148,4]
[353762266,1740016248136,-173.0,0.000148,4]
[353762267,1740016248146,-173.0,0.000148,5]
[353762268,1740016248156,-173.0,0.000148,5]
[353762269,1740016248166,-173.0,0.000148,4]
[353762270,1740016248176,-173.0,0.000148,4]
[353762271,1740016248186,-166.45807834,0.000148,15]
[353762272,1740016248197,-151.0,0.000148,2]
[353762273,1740016248208,-21394.8622418,0.000148,2]
[353762274,1740016248220,-502.21670596,0.000148,2]
[353762275,1740016248231,-502.21670596,0.000148,2]
[353762276,1740016248241,-502.21670596,0.000148,2]
[353762277,1740016248252,-502.21670596,0.000148,2]
[353762278,1740016248263,-502.21670596,0.000148,2]
[353762279,1740016248273,-502.21670596,0.000148,2]
[353762280,1740016248283,-502.21670596,0.000148,2]
[353762281,1740016248294,-502.21670596,0.000148,2]
[353762282,1740016248305,-502.21670596,0.000148,2]
[353762283,1740016248315,-502.21670596,0.000148,2]
[353762284,1740016248326,-502.21670596,0.000148,2]
[353762285,1740016248336,-502.21670596,0.000148,2]
[353762286,1740016248347,-502.21670596,0.000148,2]
[353762287,1740016248360,-502.21670596,0.000148,2]
[353762288,1740016248371,-502.21670596,0.000148,2]
[353762289,1740016248382,-502.21670596,0.000148,2]
[353762290,1740016248393,-502.21670596,0.000148,2]
[353762291,1740016248404,-502.21670596,0.000148,2]
[353762292,1740016248418,-502.21670596,0.000148,2]
[353762293,1740016248429,-502.21,0.000148,2]
[353762294,1740016248440,-153.24954113,0.000148,2]
[353762295,1740016248452,-153.24954113,0.000148,2]
[353762296,1740016248463,-153.24954113,0.000148,2]
[353762297,1740016248474,-153.24954113,0.000148,2]
[353762298,1740016248485,-153.24954113,0.000148,2]
[353762299,1740016248499,-153.24954113,0.000148,2]
[353762300,1740016248509,-153.24954113,0.000148,2]
[353762301,1740016248520,-153.24,0.000148,2]
[353762302,1740016248532,-4000.0,0.000148,2]
[353762303,1740016248543,-1528.20444584,0.00014839,2]
[353762304,1740016248554,-500.0,0.00014849,2]
[353762305,1740016248565,-500.0,0.00014849,2]
[353762306,1740016248576,-584.05,0.00014849,2]
[353762307,1740016248587,-500.0,0.00014849,2]
[353762308,1740016248597,-832.57,0.00014849,2]
[353762309,1740016248609,-1332.97,0.00014849,2]
[353762310,1740016248619,-959.47,0.00014849,2]
[353762311,1740016248629,-519.81,0.00014849,2]
[353762312,1740016248639,-816.37,0.00014849,2]
[353762313,1740016248650,-500.0,0.00014849,2]
[353762314,1740016248660,-500.0,0.00014849,2]
[353762315,1740016248670,-366.85465485,0.00014849,2]
[353762316,1740016248680,-500.0,0.00014849,2]
[353762317,1740016248690,-3832.1,0.00014849,2]
[353762318,1740016248700,-500.0,0.00014849,2]
[353762319,1740016248710,-951.13,0.00014849,2]
[353762320,1740016248720,-1133.99,0.00014849,2]
[353762321,1740016248731,-1261.84,0.00014849,2]
[353762322,1740016248741,-525.68520185,0.00014849,2]
[353762323,1740016248752,-600.74,0.00014849,2]
[353762324,1740016248762,-3070.64,0.00014849,2]
[353762325,1740016248772,-661.07,0.00014849,2]
[353762326,1740016248782,-10140.71,0.00014849,2]
[353762327,1740016248792,-500.0,0.00014849,2]
[353762328,1740016248802,-500.0,0.00014849,2]
[353762329,1740016248813,-295.50559185,0.00014869,2]
[353762330,1740016248823,-500.0,0.00014873,2]
[353762331,1740016248951,-1171.83898057,0.0001489,2]
[353762332,1740016248963,-1171.83898057,0.0001489,2]
[353762333,1740016248973,-1171.83898057,0.0001489,2]
[353762334,1740016248983,-1171.83898057,0.0001489,2]
[353762335,1740016248993,-1171.83898057,0.0001489,2]
[353762336,1740016249003,-1171.83898057,0.0001489,2]
[353762337,1740016249013,-1171.83898057,0.0001489,2]
[353762338,1740016249023,-1171.83898057,0.0001489,2]
[353762339,1740016249033,-1171.83898057,0.0001489,2]
[353762340,1740016249043,-1171.83898057,0.0001489,2]
[353762341,1740016249053,-1171.83898057,0.0001489,2]
[353762342,1740016249063,-1171.83898057,0.0001489,2]
[353762343,1740016249072,-1171.83898057,0.0001489,2]
[353762344,1740016249082,-1171.83898057,0.0001489,2]
[353762345,1740016249092,-1171.83898057,0.0001489,2]
[353762346,1740016249102,-1171.83898057,0.0001489,2]
[353762347,1740016249114,-1171.83898057,0.0001489,2]
[353762348,1740016249124,-1171.83898057,0.0001489,2]
[353762349,1740016249134,-1171.83898057,0.0001489,2]
[353762350,1740016249144,-1171.83,0.0001489,2]
[353762351,1740016249154,-150.56095269,0.0001489,2]
[353762352,1740016249164,-150.56095269,0.0001489,2]
[353762353,1740016249173,-150.56095269,0.0001489,2]
[353762354,1740016249183,-150.56095269,0.0001489,2]
[353762355,1740016249193,-150.56095269,0.0001489,2]
[353762356,1740016249203,-150.56095269,0.0001489,2]
[353762357,1740016249213,-150.56095269,0.0001489,2]
[353762358,1740016249222,-150.56095269,0.0001489,2]
[353762359,1740016249232,-150.56095269,0.0001489,2]
[353762360,1740016249242,-150.56095269,0.0001489,2]
[353762361,1740016249252,-150.56095269,0.0001489,2]
[353762362,1740016249262,-150.56095269,0.0001489,2]
[353762363,1740016249272,-150.56095269,0.0001489,2]
[353762364,1740016249283,-150.56095269,0.0001489,2]
[353762365,1740016249294,-150.56095269,0.0001489,2]
[353762366,1740016249304,-150.56095269,0.0001489,2]
[353762367,1740016249314,-150.56095269,0.0001489,2]
[353762368,1740016249323,-150.56095269,0.0001489,2]
[353762369,1740016249333,-150.56,0.0001489,2]
[353762370,1740016249344,-5339.03731257,0.00014899,2]
[353762371,1740016249355,-379.20285,0.000149,2]
[353762372,1740016249365,-379.20285,0.000149,2]
[353762373,1740016249374,-11673.75561442,0.000149,2]
[353762374,1740016249385,-818.103905,0.000149,2]
[353762375,1740016249395,-151.0,0.000149,2]
[353762376,1740016249405,-151.0,0.000149,2]
[353762377,1740016249419,-450.0,0.000149,2]
[353762378,1740016249429,-450.0,0.000149,2]
[353762379,1740016249439,-151.0,0.000149,2]
[353762380,1740016249450,-501.868546,0.000149,2]
[353762381,1740016249459,-501.868546,0.000149,2]
[353762382,1740016249469,-151.0,0.000149,2]
[353762383,1740016249478,-151.0,0.000149,2]
[353762384,1740016249488,-151.0,0.000149,2]
[353762385,1740016249499,-935.0,0.000149,2]
[353762386,1740016249508,-374229.36515953,0.000149,2]
[353762387,1740016249530,-457.5,0.000149,2]
[353762388,1740016249727,-11762.97981665,0.000149,2]
[353762389,1740016249739,-315.929,0.000149,2]
[353762390,1740016249750,-5116.54065644,0.000149,2]
[353762391,1740016249762,-800.0,0.000149,2]
[353762398,1740017086007,348.0,0.00019,120]
[353762400,1740017175718,164.299048,9.041e-05,2]
[353762405,1740017184371,5000.0,0.00019,120]
[353762446,1740017431970,-160.35991064,0.00013598,2]
[353762447,1740017431981,-188.0,0.000136,4]
[353762448,1740017431991,-188.0,0.000136,4]
[353762449,1740017432001,-188.0,0.000136,4]
[353762450,1740017432011,-183.45807834,0.000136,3]
[353762451,1740017432020,-92.18201102,0.000136,4]
[353762480,1740017437659,-95.81798898,0.000136,4]
[353762481,1740017437671,-188.0,0.000136,4]
[353762482,1740017437682,-272.56911839,0.00013697,2]
[353762483,1740017437692,-300.0,0.00013697,2]
[353762484,1740017437701,-501.13745167,0.00013698,2]
[353762485,1740017437711,-504.94930752,0.00013698,2]
[353762486,1740017437722,-503.10173925,0.00013698,2]
[353762487,1740017437732,-500.0,0.00013698,2]
[353762488,1740017437742,-500.0,0.00013698,2]
[353762489,1740017437752,-278.99494498,0.00013698,2]
[353762490,1740017437774,-222.0483869,0.00013698,2]
[353762491,1740017437784,-502.88451416,0.00013698,2]
[353762492,1740017437794,-502.39917303,0.00013698,2]
[353762493,1740017437803,-500.0,0.00013698,2]
[353762494,1740017437814,-506.89229684,0.00013698,2]
[353762495,1740017437823,-500.0,0.00013698,2]
[353762496,1740017437834,-217.17956109,0.00013698,2]
[353762497,1740017437845,-500.0,0.00013698,2]
[353762498,1740017437855,-507.7009877,0.00013698,2]
[353762499,1740017437865,-500.0,0.00013698,2]
[353762500,1740017437875,-500.0,0.00013698,2]
[353762501,1740017437885,-500.0,0.00013698,2]
[353762502,1740017437895,-500.0,0.00013698,2]
[353762503,1740017437905,-500.0,0.00013698,2]
[353762504,1740017437916,-500.0,0.00013698,2]
[353762505,1740017437925,-503.09314678,0.00013698,2]
[353762506,1740017437937,-500.0,0.00013698,2]
[353762507,1740017437947,-501.76131305,0.00013698,2]
[353762508,1740017437957,-500.0,0.00013698,2]
[353762509,1740017437967,-500.0,0.00013698,2]
[353762510,1740017437978,-507.09779333,0.00013698,2]
[353762511,1740017437988,-500.0,0.00013698,2]
[353762512,1740017437998,-505.57062089,0.00013698,2]
[353762513,1740017438008,-505.5959893,0.00013698,2]
[353762514,1740017438018,-500.0,0.00013698,2]
[353762515,1740017438028,-500.0,0.00013698,2]
[353762516,1740017438038,-500.0,0.00013698,2]
[353762517,1740017438049,-500.0,0.00013698,2]
[353762518,1740017438059,-500.0,0.00013698,2]
[353762519,1740017438070,-500.0,0.00013698,2]
[353762520,1740017438080,-500.0,0.00013698,2]
[353762521,1740017438090,-500.0,0.00013698,2]
[353762522,1740017438101,-500.0,0.00013698,2]
[353762523,1740017438111,-504.72172167,0.00013698,2]
[353762524,1740017438121,-500.0,0.00013698,2]
[353762525,1740017438132,-509.29145091,0.00013698,2]
[353762526,1740017438142,-512.16984833,0.00013698,2]
[353762527,1740017438151,-500.0,0.00013698,2]
[353762528,1740017438162,-500.0,0.00013698,2]
[353762529,1740017438173,-500.0,0.00013698,2]
[353762530,1740017438183,-500.0,0.00013698,2]
[353762531,1740017438194,-500.0,0.00013698,2]
[353762532,1740017438204,-286.47844605,0.00013698,2]
[353762533,1740017438214,-365.58632782,0.00013698,2]
[353762534,1740017438260,-134.41367218,0.00013698,2]
[353762535,1740017438271,-500.0,0.00013698,2]
[353762536,1740017438281,-606.5530337,0.00013698,2]
[353762537,1740017438291,-500.0,0.00013698,2]
[353762538,1740017438302,-500.0,0.00013698,2]
[353762539,1740017438312,-509.96990728,0.00013698,2]
[353762540,1740017438322,-505.46792344,0.00013698,2]
[353762541,1740017438332,-507.56931099,0.00013698,2]
[353762542,1740017438344,-500.0,0.00013698,2]
[353762543,1740017438354,-500.0,0.00013698,2]
[353762544,1740017438364,-500.0,0.00013698,2]
[353762545,1740017438375,-509.04550343,0.00013698,2]
[353762546,1740017438385,-500.0,0.00013698,2]
[353762547,1740017438395,-500.0,0.00013698,2]
[353762548,1740017438404,-534.92706436,0.00013698,2]
[353762549,1740017438415,-500.0,0.00013698,2]
[353762550,1740017438424,-500.0,0.00013698,2]
[353762551,1740017438437,-500.0,0.00013698,2]
[353762552,1740017438447,-505.63900693,0.00013698,2]
[353762553,1740017438457,-505.41536991,0.00013698,2]
[353762554,1740017438467,-500.0,0.00013698,2]
[353762555,1740017438478,-500.0,0.00013698,2]
[353762556,1740017438487,-501.44655862,0.00013698,2]
[353762557,1740017438500,-501.07977825,0.00013698,2]
[353762558,1740017438510,-500.0,0.00013698,2]
[353762559,1740017438520,-500.0,0.00013698,2]
[353762560,1740017438529,-500.0,0.00013698,2]
[353762561,1740017438540,-507.53,0.00013698,2]
[353762562,1740017438550,-500.0,0.00013698,2]
[353762563,1740017438560,-500.0,0.00013698,2]
[353762564,1740017438569,-506.40994525,0.00013698,2]
[353762565,1740017438579,-500.0,0.00013698,2]
[353762566,1740017438588,-500.0,0.00013698,2]
[353762567,1740017438597,-735.06,0.00013698,2]
[353762568,1740017438607,-506.55348085,0.00013698,2]
[353762569,1740017438616,-668.88,0.00013698,2]
[353762570,1740017438626,-668.88,0.00013698,2]
[353762571,1740017438636,-668.88,0.00013698,2]
[353762572,1740017438646,-1171.69,0.00013698,2]
[353762573,1740017438655,-500.0,0.00013698,2]
[353762574,1740017438664,-500.0,0.00013698,2]
[353762575,1740017438673,-500.0,0.00013698,2]
[353762576,1740017438683,-503.275227,0.00013698,2]
[353762577,1740017438692,-500.0,0.00013698,2]
[353762578,1740017438702,-500.0,0.00013698,2]
[353762579,1740017438712,-871.97,0.00013698,2]
[353762580,1740017438721,-500.0,0.00013698,2]
[353762581,1740017438731,-500.0,0.00013698,2]
[353762582,1740017438741,-500.0,0.00013698,2]
[353762583,1740017438750,-500.0,0.00013698,2]
[353762584,1740017438761,-500.0,0.00013698,2]
[353762585,1740017438773,-505.20086539,0.00013698,2]
[353762586,1740017438783,-500.0,0.00013698,2]
[353762587,1740017438793,-500.0,0.00013698,2]
[353762588,1740017438803,-500.0,0.00013698,2]
[353762589,1740017438813,-502.51066903,0.00013698,2]
[353762590,1740017438823,-504.12497037,0.00013698,2]
[353762591,1740017438833,-500.0,0.00013698,2]
[353762592,1740017438844,-500.0,0.00013698,2]
[353762593,1740017438855,-500.0,0.00013698,2]
[353762594,1740017438867,-717.77,0.00013698,2]
[353762595,1740017438877,-596.87284392,0.00013698,2]
[353762596,1740017438886,-567.46,0.00013698,2]
[353762597,1740017438896,-500.0,0.00013698,2]
[353762598,1740017438905,-505.78893462,0.00013698,2]
[353762599,1740017438917,-500.0,0.00013698,2]
[353762600,1740017438926,-500.0,0.00013698,2]
[353762601,1740017438936,-500.0,0.00013698,2]
[353762602,1740017438946,-500.0,0.00013698,2]
[353762603,1740017438956,-500.0,0.00013698,2]
[353762604,1740017438966,-500.0,0.00013698,2]
[353762605,1740017438975,-500.0,0.00013698,2]
[353762606,1740017438986,-500.0,0.00013698,2]
[353762607,1740017438996,-500.68263645,0.00013698,2]
[353762608,1740017439006,-500.0,0.00013698,2]
[353762609,1740017439016,-500.0,0.00013698,2]
[353762610,1740017439026,-3280.49,0.00013698,2]
[353762611,1740017439037,-500.0,0.00013698,2]
[353762612,1740017439047,-500.0,0.00013698,2]
[353762613,1740017439056,-500.0,0.00013698,2]
[353762614,1740017439067,-500.0,0.00013698,2]
[353762615,1740017439077,-500.0,0.00013698,2]
[353762616,1740017439087,-502.73381594,0.00013698,2]
[353762617,1740017439097,-500.0,0.00013698,2]
[353762618,1740017439107,-500.0,0.00013698,2]
[353762619,1740017439117,-1035.0,0.00013698,2]
[353762620,1740017439126,-814.25,0.00013698,2]
[353762621,1740017439136,-500.0,0.00013698,2]
[353762622,1740017439147,-500.0,0.00013698,2]
[353762623,1740017439156,-500.0,0.00013698,2]
[353762624,1740017439167,-500.62712224,0.00013698,2]
[353762625,1740017439176,-500.0,0.00013698,2]
[353762626,1740017439186,-1090.48,0.00013698,2]
[353762627,1740017439373,-500.7475392,0.00013698,2]
[353762628,1740017439385,-500.0,0.00013698,2]
[353762629,1740017439395,-500.0,0.00013698,2]
[353762630,1740017439405,-500.0,0.00013698,2]
[353762631,1740017439416,-500.0,0.00013698,2]
[353762632,1740017439426,-505.07,0.00013698,2]
[353762633,1740017439435,-2436.53,0.00013698,2]
[353762634,1740017439445,-554.57,0.00013698,2]
[353762635,1740017439454,-498.90648509,0.00013698,2]
[353762636,1740017439464,-8473.28,0.00013698,2]
[353762637,1740017439474,-500.0,0.00013698,2]
[353762638,1740017439484,-500.0,0.00013698,2]
[353762639,1740017439494,-500.0,0.00013698,2]
[353762640,1740017439503,-1356.6713653,0.00013699,2]
[353762641,1740017439513,-176.5990788,0.00013699,2]
[353762642,1740017439522,-500.0,0.00013699,2]
[353762643,1740017439533,-500.0,0.00013699,2]
[353762644,1740017439548,-500.0,0.00013699,2]
[353762645,1740017439558,-624.05054868,0.00013699,2]
[353762646,1740017439567,-668.88,0.00013779,2]
[353762647,1740017439577,-668.88,0.00013779,2]
[353762648,1740017439587,-668.88,0.00013779,2]
[353762649,1740017439597,-500.0,0.0001378,2]
[353762650,1740017439607,-546.28593014,0.0001378,2]
[353762651,1740017439616,-500.0,0.0001378,2]
[353762652,1740017439625,-500.0,0.0001378,2]
[353762653,1740017439635,-500.0,0.0001378,2]
[353762654,1740017439644,-500.0,0.0001378,2]
[353762655,1740017439654,-500.0,0.0001378,2]
[353762656,1740017439664,-502.37,0.0001378,2]
[353762657,1740017439673,-500.0,0.0001378,2]
[353762658,1740017439682,-500.0,0.0001378,2]
[353762659,1740017439692,-512.26365716,0.0001378,2]
[353762660,1740017439701,-500.0,0.0001378,2]
[353762661,1740017439710,-500.0,0.0001378,2]
[353762662,1740017439720,-500.0,0.0001378,2]
[353762663,1740017439730,-500.0,0.0001378,2]
[353762664,1740017439739,-506.23968342,0.0001378,2]
[353762665,1740017439748,-505.7751547,0.0001378,2]
[353762666,1740017439759,-208.8030192,0.0001378,2]
[353762667,1740017439773,-500.0,0.0001378,2]
[353762668,1740017439782,-500.0,0.0001378,2]
[353762669,1740017439791,-500.0,0.0001378,2]
[353762670,1740017439802,-500.0,0.0001378,2]
[353762671,1740017439811,-508.75907403,0.0001378,2]
[353762672,1740017439822,-500.0,0.0001378,2]
[353762673,1740017439833,-500.0,0.0001378,2]
[353762674,1740017439845,-500.0,0.0001378,2]
[353762675,1740017439854,-500.0,0.0001378,2]
[353762677,1740017439864,-500.0,0.0001378,2]
[353762679,1740017439873,-504.09386701,0.0001378,2]
[353762681,1740017439882,-507.10919914,0.0001378,2]
[353762683,1740017439892,-508.64494004,0.0001378,2]
[353762685,1740017439902,-500.0,0.0001378,2]
[353762687,1740017439911,-500.0,0.0001378,2]
[353762689,1740017439921,-500.0,0.0001378,2]
[353762691,1740017439931,-500.0,0.0001378,2]
[353762693,1740017439940,-500.0,0.0001378,2]
[353762695,1740017439951,-500.0,0.0001378,2]
[353762697,1740017439963,-509.14606965,0.0001378,2]
[353762699,1740017439972,-500.0,0.0001378,2]
[353762701,1740017439981,-504.4956583,0.0001378,2]
[353762703,1740017439990,-506.67381744,0.0001378,2]
[353762705,1740017440000,-500.0,0.0001378,2]
[353762707,1740017440010,-500.0,0.0001378,2]
[353762708,1740017440020,-500.0,0.0001378,2]
[353762709,1740017440029,-500.0,0.0001378,2]
[353762710,1740017440038,-500.0,0.0001378,2]
[353762711,1740017440047,-500.0,0.0001378,2]
[353762712,1740017440057,-507.53,0.0001378,2]
[353762713,1740017440066,-507.43879268,0.0001378,2]
[353762714,1740017440075,-500.0,0.0001378,2]
[353762715,1740017440084,-500.0,0.0001378,2]
[353762716,1740017440094,-506.0956412,0.0001378,2]
[353762717,1740017440105,-735.06,0.0001378,2]
[353762718,1740017440114,-1171.69,0.0001378,2]
[353762719,1740017440123,-500.0,0.0001378,2]
[353762720,1740017440133,-542.07537762,0.0001378,2]
[353762721,1740017440142,-503.38492946,0.0001378,2]
[353762722,1740017440152,-503.08334714,0.0001378,2]
[353762723,1740017440162,-225.60980765,0.0001378,2]
[353762725,1740017440171,-871.97,0.0001378,2]
[353762726,1740017440180,-500.0,0.0001378,2]
[353762727,1740017440189,-500.0,0.0001378,2]
[353762728,1740017440198,-500.0,0.0001378,2]
[353762730,1740017440208,-500.0,0.0001378,2]
[353762732,1740017440217,-500.0,0.0001378,2]
[353762734,1740017440227,-500.0,0.0001378,2]
[353762735,1740017440238,-500.0,0.0001378,2]
[353762736,1740017440248,-500.0,0.0001378,2]
[353762737,1740017440257,-500.0,0.0001378,2]
[353762738,1740017440267,-500.0,0.0001378,2]
[353762739,1740017440278,-500.0,0.0001378,2]
[353762740,1740017440287,-717.77,0.0001378,2]
[353762741,1740017440296,-567.46,0.0001378,2]
[353762742,1740017440306,-530.96,0.0001378,2]
[353762743,1740017440316,-500.0,0.0001378,2]
[353762744,1740017440326,-500.0,0.0001378,2]
[353762745,1740017440335,-500.0,0.0001378,2]
[353762746,1740017440344,-500.0,0.0001378,2]
[353762747,1740017440354,-500.0,0.0001378,2]
[353762748,1740017440364,-623.57283787,0.0001378,2]
[353762749,1740017440373,-506.63121742,0.0001378,2]
[353762750,1740017440383,-500.0,0.0001378,2]
[353762751,1740017440393,-500.0,0.0001378,2]
[353762752,1740017440403,-500.0,0.0001378,2]
[353762753,1740017440413,-3280.49,0.0001378,2]
[353762754,1740017440423,-500.0,0.0001378,2]
[353762755,1740017440433,-505.76753374,0.0001378,2]
[353762756,1740017440443,-500.0,0.0001378,2]
[353762757,1740017440452,-500.0,0.0001378,2]
[353762758,1740017440462,-500.0,0.0001378,2]
[353762759,1740017440471,-1035.0,0.0001378,2]
[353762760,1740017440481,-814.25,0.0001378,2]
[353762761,1740017440490,-505.57187487,0.0001378,2]
[353762762,1740017440500,-500.0,0.0001378,2]
[353762763,1740017440510,-500.0,0.0001378,2]
[353762764,1740017440519,-500.0,0.0001378,2]
[353762765,1740017440528,-1090.48,0.0001378,2]
[353762766,1740017440538,-500.0,0.0001378,2]
[353762767,1740017440549,-500.0,0.0001378,2]
[353762768,1740017440559,-500.0,0.0001378,2]
[353762769,1740017440569,-505.07,0.0001378,2]
[353762770,1740017440580,-2436.53,0.0001378,2]
[353762771,1740017440591,-554.57,0.0001378,2]
[353762772,1740017440603,-8473.28,0.0001378,2]
[353762773,1740017440615,-500.0,0.0001378,2]
[353762774,1740017440626,-500.0,0.0001378,2]
[353762775,1740017440636,-500.0,0.0001378,2]
[353762776,1740017440647,-668.88,0.00013861,2]
[353762777,1740017440657,-668.88,0.00013862,2]
[353762778,1740017440668,-500.0,0.00013863,2]
[353762779,1740017440677,-494.81538977,0.00013863,2]
[353762780,1740017440795,-5.18461023,0.00013863,2]
[353762781,1740017440807,-507.23976924,0.00013863,2]
[353762782,1740017440816,-500.0,0.00013863,2]
[353762783,1740017440826,-280.62580051,0.00013863,2]
[353762784,1740017440839,-227.0160516,0.00013863,2]
[353762785,1740017440848,-512.10169155,0.00013863,2]
[353762786,1740017440858,-500.0,0.00013863,2]
[353762787,1740017440868,-500.0,0.00013863,2]
[353762788,1740017440878,-500.0,0.00013863,2]
[353762789,1740017440888,-500.0,0.00013863,2]
[353762790,1740017440897,-500.0,0.00013863,2]
[353762791,1740017440907,-500.0,0.00013863,2]
[353762792,1740017440917,-500.0,0.00013863,2]
[353762793,1740017440927,-500.0,0.00013863,2]
[353762794,1740017440936,-500.0,0.00013863,2]
[353762795,1740017440946,-506.09841279,0.00013863,2]
[353762796,1740017440956,-510.69315172,0.00013863,2]
[353762797,1740017440965,-500.0,0.00013863,2]
[353762798,1740017440974,-500.0,0.00013863,2]
[353762799,1740017440984,-506.84137931,0.00013863,2]
[353762800,1740017440993,-500.0,0.00013863,2]
[353762801,1740017441003,-500.0,0.00013863,2]
[353762802,1740017441012,-497.20316506,0.00013863,2]
[353762803,1740017441021,-509.10607283,0.00013863,2]
[353762804,1740017441031,-500.0,0.00013863,2]
[353762805,1740017441040,-500.0,0.00013863,2]
[353762806,1740017441049,-500.0,0.00013863,2]
[353762807,1740017441059,-500.0,0.00013863,2]
[353762808,1740017441069,-500.0,0.00013863,2]
[353762809,1740017441078,-500.0,0.00013863,2]
[353762810,1740017441087,-500.0,0.00013863,2]
[353762811,1740017441097,-197.17496539,0.00013863,2]
[353762812,1740017441107,-507.53,0.00013863,2]
[353762813,1740017441116,-500.0,0.00013863,2]
[353762814,1740017441125,-500.0,0.00013863,2]
[353762815,1740017441135,-735.06,0.00013863,2]